bitfinex/quotes_BTCUSD_20251021
["timestamp","ask_amount","ask_price","bid_price","bid_amount"]
[1761062460220,1.43320552,113560.0,113550.0,0.00014562]
[1761062460503,0.47422357,113560.0,113550.0,0.00014562]
[1761062460708,0.34,113560.0,113550.0,0.17627948]
[1761062460921,0.17610386,113570.0,113560.0,0.17610693]
[1761062460922,0.17610374,113570.0,113560.0,0.17610693]
[1761062461126,0.21055221,113570.0,113550.0,0.00014562]
[1761062461339,0.17611835,113560.0,113550.0,0.00014562]
[1761062461559,0.60592275,113570.0,113550.0,0.00014562]
[1761062461760,0.36464843,113570.0,113560.0,0.17611835]
[1761062461965,0.52431898,113570.0,113560.0,0.17611835]
[1761062462102,0.34,113570.0,113560.0,0.17611835]
[1761062462534,0.2729364,113600.0,113570.0,0.17609166]
[1761062462728,0.09803127,113600.0,113580.0,0.17608733]
[1761062462936,0.0179959,113600.0,113590.0,0.17607183]
[1761062463103,0.00821226,113600.0,113580.0,0.28920733]
[1761062463449,0.18426929,113600.0,113580.0,0.28920733]
[1761062463600,0.52585547,113590.0,113580.0,0.11312]
[1761062463798,0.17605703,113600.0,113580.0,0.28920733]
[1761062464002,0.00978364,113590.0,113580.0,0.28935295]
[1761062464404,0.52585547,113590.0,113580.0,0.28935295]
[1761062464601,0.34,113590.0,113580.0,0.28935295]
[1761062465826,0.00032805,113620.0,113610.0,0.17604084]
[1761062465983,0.00854015,113620.0,113610.0,0.17604084]
[1761062466184,0.01832379,113620.0,113600.0,0.2891235]
[1761062466389,0.28416922,113620.0,113600.0,0.2891235]
[1761062466592,0.61438558,113620.0,113610.0,0.17604084]
[1761062466820,0.00854015,113620.0,113610.0,0.17604084]
[1761062467144,0.00854015,113620.0,113610.0,0.89491179]
[1761062467350,0.00854015,113620.0,113610.0,0.96712672]
[1761062467555,0.00854015,113620.0,113610.0,0.26585985]
[1761062467957,0.00032805,113620.0,113610.0,0.96712672]
[1761062468101,0.00032805,113620.0,113610.0,1.30712672]
[1761062468301,0.00032805,113620.0,113610.0,0.60585985]
[1761062468749,0.00032805,113620.0,113610.0,1.30712672]
[1761062468956,0.0026,113640.0,113630.0,0.87727672]
[1761062469104,0.4981,113650.0,113630.0,0.87727672]
[1761062469105,0.4981,113650.0,113640.0,0.87726123]
[1761062469305,0.4981,113650.0,113640.0,0.26581337]
[1761062469553,0.4981,113650.0,113640.0,0.96708024]
[1761062469798,0.49908387,113650.0,113640.0,1.30708024]
[1761062469963,0.49908387,113650.0,113640.0,0.60581337]
[1761062470171,0.49956917,113650.0,113640.0,0.71989337]
[1761062470311,0.49956917,113650.0,113640.0,1.42116024]
[1761062470970,0.49956917,113650.0,113640.0,1.42920643]
[1761062471424,0.10115668,113650.0,113640.0,1.42820643]
[1761062471599,1e-08,113650.0,113640.0,1.43724367]
[1761062471827,1e-08,113650.0,113640.0,1.47442595]
[1761062472027,1e-08,113650.0,113640.0,1.48442594]
[1761062472501,1e-08,113650.0,113640.0,0.78311907]
[1761062472735,1e-08,113650.0,113640.0,1.48438594]
[1761062472869,1e-08,113650.0,113640.0,1.34951973]
[1761062473071,0.34000001,113700.0,113690.0,0.17591696]
[1761062473293,0.34000001,113700.0,113690.0,0.29700315]
[1761062473294,0.34014562,113700.0,113690.0,0.29700315]
[1761062473650,0.34178447,113700.0,113690.0,0.29700315]
[1761062474299,0.34178447,113700.0,113690.0,0.12108619]
[1761062474499,1.08408662,113700.0,113690.0,0.00804619]
[1761062474700,1.30887056,113700.0,113690.0,0.00804619]
[1761062475114,1.18286927,113700.0,113690.0,0.00804619]
[1761062475439,0.65265089,113700.0,113690.0,0.00804619]
[1761062475794,1.21905155,113700.0,113690.0,0.00804619]
[1761062476350,0.76573089,113700.0,113690.0,0.00804619]
[1761062476561,0.34,113680.0,113670.0,0.28898735]
[1761062476756,0.46600129,113690.0,113670.0,0.29699262]
[1761062476934,0.00978364,113680.0,113670.0,0.29699262]
[1761062477136,0.18571608,113680.0,113670.0,0.12104527]
[1761062478090,0.18571608,113680.0,113670.0,0.29699318]
[1761062478091,0.00978364,113680.0,113670.0,0.29699318]
[1761062478296,0.00978364,113680.0,113670.0,0.29799318]
[1761062478496,0.34,113690.0,113680.0,0.17593244]
[1761062478704,0.34,113690.0,113680.0,0.00800527]
[1761062478860,0.34,113690.0,113680.0,0.18393771]
[1761062479036,0.00910926,113700.0,113690.0,0.17591696]
[1761062479241,0.3588929,113700.0,113690.0,0.00800527]
[1761062479475,0.52501075,113700.0,113690.0,0.00800527]
[1761062479674,0.52501075,113700.0,113690.0,0.12100527]
[1761062479878,0.52501075,113700.0,113680.0,0.28997244]
[1761062480056,0.34910926,113700.0,113690.0,0.17591696]
[1761062480315,0.34910926,113700.0,113690.0,0.18390636]
[1761062481081,0.52501075,113700.0,113690.0,0.18390636]
[1761062481378,0.34910926,113700.0,113690.0,0.17591696]
[1761062482999,0.00014562,113700.0,113690.0,0.84012603]
[1761062483398,0.00178447,113700.0,113690.0,0.27372537]
[1761062484393,0.00178447,113700.0,113690.0,0.27472537]
[1761062485127,0.00178447,113700.0,113690.0,0.84112603]
[1761062486430,0.00178447,113700.0,113690.0,0.27472537]
[1761062486635,0.00178447,113700.0,113690.0,0.84112603]
[1761062487728,0.00178447,113700.0,113690.0,0.27472537]
[1761062488558,0.00178447,113700.0,113690.0,0.84112603]
[1761062489093,0.00178447,113700.0,113690.0,0.84110656]
[1761062490010,0.00178447,113700.0,113690.0,0.2747059]
[1761062490139,0.00178447,113700.0,113690.0,0.84110656]
[1761062490351,0.00178447,113700.0,113690.0,0.2747059]
[1761062490602,0.00178447,113700.0,113690.0,0.27470927]
[1761062490796,0.00178447,113700.0,113690.0,0.38782927]
[1761062490947,0.00178447,113700.0,113690.0,0.95422993]
[1761062491158,0.00178447,113700.0,113690.0,0.38782927]
[1761062491359,0.00178447,113700.0,113690.0,0.95422993]
[1761062491639,0.00178447,113700.0,113690.0,0.38682927]
[1761062491964,0.00178447,113700.0,113690.0,0.38782927]
[1761062492361,0.00178447,113700.0,113690.0,0.38778927]
[1761062492567,0.00178447,113700.0,113690.0,0.27470927]
[1761062492926,0.00178447,113700.0,113690.0,0.38778927]
[1761062494590,0.00178447,113700.0,113690.0,0.27470927]
[1761062494994,0.00178447,113700.0,113690.0,0.38774927]
[1761062495418,0.00178447,113700.0,113690.0,0.3877949]
[1761062496186,0.17768596,113700.0,113690.0,0.29797589]
[1761062496389,0.00178447,113700.0,113690.0,0.29797589]
[1761062496515,0.01156811,113700.0,113690.0,0.29797589]
[1761062497538,0.00178447,113700.0,113690.0,0.95419556]
[1761062503390,0.00638915,113710.0,113700.0,0.17590149]
[1761062503577,0.00638915,113710.0,113700.0,0.27373943]
[1761062503978,0.00638915,113710.0,113700.0,0.00801893]
[1761062504180,1.08867583,113710.0,113700.0,0.29688042]
[1761062504378,0.52227517,113710.0,113700.0,0.00801893]
[1761062504742,1.28637846,113710.0,113700.0,0.00801893]
[1761062504944,0.7199778,113710.0,113700.0,0.00801893]
[1761062505073,0.55208377,113700.0,113690.0,0.11404]
[1761062505437,0.55208377,113700.0,113690.0,0.18499303]
[1761062505438,0.34,113700.0,113690.0,0.18499303]
[1761062505607,0.34,113700.0,113690.0,0.001]
[1761062505819,0.51590149,113700.0,113690.0,0.17691696]
[1761062506811,1.27812124,113700.0,113690.0,0.001]
[1761062507116,0.64190278,113700.0,113690.0,0.00908035]
[1761062507502,1.20830344,113700.0,113690.0,0.00908035]
[1761062508124,1.20830344,113700.0,113690.0,0.001]
[1761062508746,0.64190278,113700.0,113690.0,0.001]
[1761062509513,0.6057205,113700.0,113690.0,0.001]
[1761062509731,0.6057205,113700.0,113680.0,0.28913199]
[1761062509955,0.5257006,113690.0,113680.0,0.28927805]
[1761062510164,0.51591696,113690.0,113680.0,0.28927805]
[1761062510584,0.51591696,113690.0,113680.0,0.11334561]
[1761062510784,1.08231762,113690.0,113680.0,0.00014561]
[1761062510986,1.08231762,113690.0,113680.0,0.11350561]
[1761062511394,1.08231762,113690.0,113680.0,0.11450561]
[1761062511650,1.20831891,113690.0,113680.0,0.00014561]
[1761062511856,0.64191825,113690.0,113680.0,0.00114561]
[1761062512081,1.20831891,113690.0,113680.0,0.00114561]
[1761062512481,0.64191825,113690.0,113680.0,0.00114561]
[1761062512694,1.20831891,113690.0,113680.0,0.00114561]
[1761062512917,1.29813792,113690.0,113680.0,0.00114561]
[1761062513120,0.73173726,113690.0,113680.0,0.00114561]
[1761062513269,1.29813792,113690.0,113680.0,0.00114561]
[1761062513900,0.17600763,113640.0,113620.0,0.17594177]
[1761062514076,0.17600763,113640.0,113620.0,0.17642707]
[1761062514077,0.18579127,113640.0,113620.0,0.17642707]
[1761062514276,0.17600985,113630.0,113620.0,0.0004853]
[1761062514482,0.17600763,113640.0,113620.0,0.28982949]
[1761062514718,0.18579349,113630.0,113620.0,0.0004853]
[1761062515025,0.00978364,113630.0,113620.0,0.28983064]
[1761062515445,0.00978364,113630.0,113620.0,0.29083064]
[1761062516685,0.00978364,113630.0,113620.0,0.1148053]
[1761062516886,0.00978364,113630.0,113620.0,0.29083064]
[1761062517082,0.00978364,113630.0,113620.0,0.28983064]
[1761062518041,0.01886208,113630.0,113620.0,0.28983064]
[1761062518932,0.01886208,113630.0,113620.0,0.17651064]
[1761062519099,0.01886208,113630.0,113620.0,0.28979064]
[1761062520326,0.01886208,113630.0,113620.0,0.43909064]
[1761062520790,0.17598971,113670.0,113630.0,0.18481034]
[1761062520996,0.18574703,113660.0,113650.0,0.17597642]
[1761062521167,0.18574703,113660.0,113640.0,0.28918052]
[1761062521367,0.52574703,113660.0,113650.0,0.17597888]
[1761062521576,0.52495135,113660.0,113650.0,0.17597888]
[1761062522153,0.34898796,113660.0,113650.0,0.17597888]
[1761062523885,0.52495135,113660.0,113650.0,0.17597888]
[1761062524276,0.34898796,113660.0,113650.0,0.17597888]
[1761062525984,0.30893464,113680.0,113660.0,0.17595447]
[1761062526193,0.00978364,113670.0,113660.0,0.28911447]
[1761062526390,0.18573155,113670.0,113660.0,0.28911447]
[1761062526590,0.00978364,113670.0,113660.0,0.28911447]
[1761062526800,0.18573155,113670.0,113660.0,0.28911447]
[1761062527127,0.18587692,113670.0,113660.0,0.28911447]
[1761062528071,0.00014537,113670.0,113660.0,0.85551513]
[1761062528244,0.00014537,113670.0,113660.0,0.28911447]
[1761062528472,0.00992901,113670.0,113660.0,0.28911447]
[1761062529295,0.00992901,113670.0,113660.0,0.17595447]
[1761062529507,0.00992901,113670.0,113640.0,0.17598052]
[1761062529508,0.17596339,113660.0,113640.0,0.17598052]
[1761062529716,0.17596355,113660.0,113650.0,0.11308]
[1761062529922,0.51596355,113660.0,113650.0,0.11308]
[1761062530141,0.34,113660.0,113650.0,0.28905888]
[1761062530346,0.51596339,113660.0,113650.0,0.28905888]
[1761062531101,0.00014537,113670.0,113650.0,0.28905888]
[1761062531282,0.55227789,113670.0,113650.0,0.28905888]
[1761062531719,0.00978364,113660.0,113650.0,0.28905888]
[1761062532429,0.17609334,113670.0,113660.0,0.17596339]
[1761062532636,0.18587698,113670.0,113660.0,0.17596339]
[1761062532861,0.52587698,113670.0,113660.0,0.17596339]
[1761062533084,0.51609334,113670.0,113660.0,0.17596339]
[1761062533320,0.34014537,113670.0,113660.0,0.17596339]
[1761062533763,0.00014537,113670.0,113660.0,0.17596339]
[1761062533994,0.00014537,113670.0,113650.0,0.11308]
[1761062533995,0.17596339,113660.0,113650.0,0.11308]
[1761062534215,0.17596339,113660.0,113640.0,0.1494]
[1761062534216,0.17597888,113650.0,113640.0,0.1494]
[1761062534445,0.17599825,113640.0,113630.0,0.17600985]
[1761062534608,0.18578189,113640.0,113630.0,0.17600985]
[1761062534821,0.00978364,113640.0,113630.0,0.28912985]
[1761062535204,0.08981901,113660.0,113650.0,0.17597888]
[1761062535407,0.17597888,113650.0,113640.0,0.17599189]
[1761062535610,0.17597888,113650.0,113640.0,0.28911189]
[1761062535966,0.64196509,113660.0,113640.0,0.28911189]
[1761062536420,0.55214567,113660.0,113650.0,0.17597888]
[1761062536631,0.51609362,113670.0,113650.0,0.17597888]
[1761062536847,0.60591263,113670.0,113650.0,0.17597888]
[1761062537306,0.18574703,113660.0,113650.0,0.17597888]
[1761062537526,0.00978364,113660.0,113650.0,0.17597888]
[1761062538160,0.17596339,113660.0,113650.0,0.17597888]
[1761062538382,0.60591263,113670.0,113650.0,0.17597888]
[1761062538597,0.64209491,113670.0,113660.0,0.11312]
[1761062538807,0.64209457,113670.0,113660.0,0.11312]
[1761062540341,1.34391542,113670.0,113660.0,0.11312]
[1761062540575,0.17600347,113650.0,113620.0,0.17602311]
[1761062540906,0.51600985,113630.0,113590.0,0.17598339]
[1761062541005,0.51600985,113630.0,113610.0,0.11324]
[1761062541006,0.17602724,113620.0,113610.0,0.11324]
[1761062541243,0.17602724,113620.0,113600.0,0.11328]
[1761062541244,0.17604084,113610.0,113600.0,0.11328]
[1761062541471,0.34,113620.0,113600.0,0.28933633]
[1761062541699,0.34,113620.0,113610.0,0.17604084]
[1761062541934,0.52484805,113620.0,113600.0,0.28933633]
[1761062542176,0.34881889,113620.0,113610.0,0.0004853]
[1761062542392,0.52484423,113620.0,113610.0,0.0004853]
[1761062543111,0.73079324,113620.0,113610.0,0.0004853]
[1761062543340,0.65084552,113620.0,113610.0,0.1138453]
[1761062544216,0.65084552,113620.0,113610.0,0.0004853]
[1761062544600,0.65084552,113620.0,113610.0,0.1138053]
[1761062544968,0.65084552,113620.0,113610.0,0.0004853]
[1761062545172,1.35266637,113620.0,113610.0,0.0004853]
[1761062545438,1.44248538,113620.0,113610.0,0.0004853]
[1761062545648,0.74066453,113620.0,113610.0,0.0004853]
[1761062546402,0.56463919,113620.0,113610.0,0.17652614]
[1761062546594,0.47482018,113620.0,113610.0,0.17652614]
[1761062547186,0.52484423,113620.0,113610.0,0.17652614]
[1761062547394,0.52484423,113620.0,113610.0,0.0004853]
[1761062547962,0.34,113610.0,113600.0,0.23990114]
[1761062548813,0.34,113610.0,113560.0,0.17606363]
[1761062548814,0.00880281,113600.0,113560.0,0.17606363]
[1761062549022,0.17607183,113590.0,113570.0,0.1761017]
[1761062549205,0.18587097,113580.0,113560.0,0.17620925]
[1761062549406,0.18587097,113580.0,113570.0,0.17610284]
[1761062549407,0.00978364,113580.0,113570.0,0.17610284]
[1761062549609,0.00978364,113580.0,113570.0,0.28942284]
[1761062550009,0.18587097,113580.0,113570.0,0.28942284]
[1761062550398,0.52587097,113580.0,113570.0,0.28942284]
[1761062550599,0.34,113580.0,113570.0,0.28942284]
[1761062550938,0.34,113580.0,113570.0,0.99124369]
[1761062551137,0.19482659,113620.0,113590.0,0.18487542]
[1761062551138,0.00907857,113620.0,113590.0,0.18487542]
[1761062551465,0.09960265,113620.0,113610.0,0.17604084]
[1761062551621,0.17604084,113610.0,113600.0,0.28940267]
[1761062551816,0.17604084,113610.0,113600.0,0.11336]
[1761062552023,0.17604084,113610.0,113600.0,0.28941633]
[1761062552706,0.17604084,113610.0,113600.0,0.29041633]
[1761062553019,0.00978364,113610.0,113600.0,0.29041633]
[1761062554695,0.3488637,113620.0,113610.0,0.17604084]
[1761062554873,0.52488904,113620.0,113610.0,0.17604084]
[1761062555238,0.52488904,113620.0,113600.0,0.11436]
[1761062555570,0.00978364,113610.0,113600.0,0.28941575]
[1761062557862,0.00978364,113610.0,113600.0,0.29041575]
[1761062560401,0.3488637,113620.0,113610.0,0.17604084]
[1761062560881,0.52488904,113620.0,113610.0,0.17604084]
[1761062561211,0.3488637,113620.0,113610.0,0.17604084]
[1761062562722,0.58099485,113620.0,113590.0,0.17607183]
[1761062562920,0.52488904,113620.0,113600.0,0.2892556]
[1761062563318,0.52488904,113620.0,113610.0,0.17604084]
[1761062563524,0.52488904,113620.0,113600.0,0.2892556]
[1761062563737,0.51605633,113600.0,113590.0,0.00014562]
[1761062563962,0.51605633,113600.0,113590.0,0.28941745]
[1761062564374,0.51605633,113600.0,113590.0,0.11334562]
[1761062564577,0.34,113600.0,113590.0,0.28941745]
[1761062564785,0.51605633,113600.0,113590.0,0.28941745]
[1761062565492,0.34,113600.0,113590.0,0.28941745]
[1761062566478,0.34,113610.0,113600.0,0.17605633]
[1761062566679,0.0088637,113620.0,113610.0,0.17604084]
[1761062566800,0.0088637,113620.0,113610.0,0.28936084]
[1761062566997,0.52579476,113630.0,113620.0,0.17602534]
[1761062567245,0.17601112,113630.0,113620.0,0.17602534]
[1761062567480,0.18579476,113630.0,113620.0,0.17602534]
[1761062568221,0.22285674,113630.0,113620.0,0.17602534]
[1761062568424,0.17600985,113630.0,113620.0,0.17602534]
[1761062568660,0.52579349,113630.0,113620.0,0.17602534]
[1761062568865,1.35263248,113630.0,113590.0,0.17621745]
[1761062569061,0.17604084,113610.0,113600.0,0.29033633]
[1761062569243,0.18582448,113610.0,113600.0,0.29033633]
[1761062569626,0.00978364,113610.0,113600.0,0.29033633]
[1761062569827,0.18511993,113610.0,113600.0,0.28933633]
[1761062570224,0.18511993,113610.0,113600.0,0.29033633]
[1761062571088,0.00907909,113610.0,113600.0,0.29033633]
[1761062571480,0.52471035,113620.0,113610.0,0.17604084]
[1761062571683,0.34868501,113620.0,113610.0,0.17604084]
[1761062571886,0.52471035,113620.0,113610.0,0.17604084]
[1761062572697,0.17604084,113610.0,113600.0,0.11428]
[1761062572876,0.17604084,113610.0,113600.0,0.001]
[1761062573076,0.17604084,113610.0,113600.0,0.11416]
[1761062573495,0.18511993,113610.0,113600.0,0.29021633]
[1761062573699,0.18511993,113610.0,113600.0,0.001]
[1761062573897,0.65112122,113610.0,113600.0,0.001]
[1761062574252,0.34,113610.0,113600.0,0.29021633]
[1761062574401,0.34868501,113620.0,113610.0,0.17604084]
[1761062574578,0.51602568,113620.0,113600.0,0.29021633]
[1761062574778,0.00907909,113610.0,113600.0,0.29021633]
[1761062575839,0.52508826,113620.0,113610.0,0.17604084]
[1761062575994,0.34906278,113620.0,113610.0,0.17604084]
[1761062576410,0.52508812,113620.0,113610.0,0.17604084]
[1761062577204,0.52508812,113620.0,113600.0,0.29021633]
[1761062577547,0.52508812,113620.0,113610.0,0.17604084]
[1761062579131,0.34906278,113620.0,113610.0,0.17604084]
[1761062580021,0.00906278,113620.0,113610.0,0.17604084]
[1761062580361,0.17606064,113650.0,113630.0,0.17600985]
[1761062580563,0.26587965,113650.0,113630.0,0.28916985]
[1761062580798,0.08981901,113650.0,113640.0,0.17599436]
[1761062580996,0.27487698,113650.0,113640.0,0.17599436]
[1761062581200,0.08981901,113650.0,113640.0,0.17599436]
[1761062581410,0.28372875,113650.0,113640.0,0.17599436]
[1761062581619,0.00933647,113650.0,113640.0,0.17599436]
[1761062581771,0.01841556,113650.0,113640.0,0.17599436]
[1761062582410,0.01696841,113650.0,113640.0,0.17245027]
[1761062582627,0.01696841,113650.0,113640.0,0.15485084]
[1761062582814,0.01696841,113650.0,113640.0,0.17245027]
[1761062583012,0.01696841,113650.0,113640.0,0.15485084]
[1761062585603,0.01696841,113650.0,113640.0,0.17245027]
[1761062586213,0.01696841,113650.0,113640.0,0.87427112]
[1761062586427,0.01696841,113650.0,113640.0,0.15485084]
[1761062586627,0.01696841,113650.0,113640.0,0.17245027]
[1761062587216,0.01696841,113650.0,113640.0,0.9474907]
[1761062587539,0.01696841,113650.0,113640.0,0.24566985]
[1761062588427,0.01696841,113650.0,113640.0,0.35874985]
[1761062588838,0.01696841,113650.0,113640.0,0.15585084]
[1761062589037,0.21314838,113650.0,113640.0,0.001]
[1761062589243,0.55314838,113650.0,113640.0,0.001]
[1761062589440,0.55314838,113650.0,113640.0,0.11428]
[1761062589646,0.53294729,113650.0,113640.0,0.29027436]
[1761062589852,0.53294729,113650.0,113640.0,0.11428]
[1761062590052,0.53294729,113650.0,113640.0,0.29027436]
[1761062590367,1.36076943,113650.0,113640.0,0.001]
[1761062591262,0.44678742,113650.0,113640.0,0.29031436]
[1761062591438,0.44678742,113650.0,113640.0,0.11432]
[1761062591439,0.53294729,113650.0,113640.0,0.11432]
[1761062591783,0.53294729,113650.0,113640.0,0.29031436]
[1761062592875,0.53294729,113650.0,113640.0,0.11432]
[1761062593048,0.53294729,113650.0,113640.0,0.001]
[1761062593212,0.65894858,113650.0,113640.0,0.001]
[1761062593416,1.36076943,113650.0,113640.0,0.001]
[1761062593653,0.65894858,113650.0,113640.0,0.001]
[1761062594007,0.74832351,113650.0,113640.0,0.001]
[1761062594800,0.74832351,113650.0,113640.0,0.17699436]
[1761062595020,0.74832351,113650.0,113640.0,0.001]
[1761062595223,1.45014436,113650.0,113640.0,0.001]
[1761062595597,0.74832351,113650.0,113640.0,0.001]
[1761062595913,0.55217664,113640.0,113630.0,0.28956952]
[1761062596033,0.65847936,113640.0,113630.0,0.28956952]
[1761062596640,0.482485,113640.0,113630.0,0.28956952]
[1761062596858,0.01648371,113640.0,113630.0,0.28956952]
[1761062597071,0.01648371,113640.0,113630.0,0.85654262]
[1761062597275,0.01648371,113640.0,113630.0,0.37938853]
[1761062597496,0.0004847,113650.0,113640.0,0.17599436]
[1761062597725,0.01693625,113650.0,113640.0,0.83278647]
[1761062598786,0.0004847,113650.0,113640.0,0.83278647]
[1761062599007,0.0004847,113650.0,113640.0,0.83378647]
[1761062601102,0.0004847,113650.0,113640.0,0.26681337]
[1761062601329,0.0004847,113650.0,113640.0,0.83378647]
[1761062601545,0.0004847,113650.0,113640.0,0.26681337]
[1761062601738,0.0004847,113650.0,113640.0,0.83378647]
[1761062602166,0.01692036,113650.0,113640.0,0.83378647]
[1761062602514,0.01692036,113650.0,113640.0,0.84244931]
[1761062602861,0.01692036,113650.0,113640.0,0.26681337]
[1761062603417,0.01692036,113650.0,113640.0,0.29055436]
[1761062604547,0.02599945,113650.0,113640.0,0.29055436]
[1761062604980,0.02599945,113650.0,113640.0,0.85752746]
[1761062604981,0.01692036,113650.0,113640.0,0.85752746]
[1761062605592,0.01692036,113650.0,113640.0,0.29055436]
[1761062607917,0.02599945,113650.0,113640.0,0.29055436]
[1761062608368,0.20197833,113650.0,113640.0,0.17699436]
[1761062608569,0.19289924,113650.0,113640.0,0.001]
[1761062608698,0.53289924,113650.0,113640.0,0.11444]
[1761062609196,0.53289924,113650.0,113640.0,0.29043436]
[1761062609516,0.35692036,113650.0,113640.0,0.29043436]
[1761062609923,0.53289924,113650.0,113640.0,0.11344]
[1761062610121,0.65890053,113650.0,113640.0,0.28943436]
[1761062610334,0.48292165,113650.0,113640.0,0.29043436]
[1761062610539,0.35692036,113650.0,113640.0,0.29047436]
[1761062611902,0.01692036,113650.0,113640.0,0.29047436]
[1761062612767,0.02599945,113650.0,113640.0,0.17699436]
[1761062612953,0.02599945,113650.0,113640.0,0.29043436]
[1761062613151,0.01692036,113650.0,113640.0,0.29047436]
[1761062613712,5.01692036,113650.0,113640.0,0.29047436]
[1761062614123,5.01692036,113650.0,113640.0,0.85744746]
[1761062614332,5.0004847,113650.0,113640.0,0.85744746]
[1761062614536,5.17646358,113650.0,113640.0,0.001]
[1761062614888,5.17646358,113650.0,113640.0,0.11448]
[1761062615090,5.0004847,113650.0,113640.0,0.29047436]
[1761062617537,5.01694491,113650.0,113640.0,0.29047436]
[1761062617737,5.0004847,113650.0,113640.0,0.29047436]
[1761062619012,5.17646358,113650.0,113640.0,0.29047436]
[1761062619214,5.01694383,113650.0,113640.0,0.29047436]
[1761062619781,5.19292271,113650.0,113640.0,0.29047436]
[1761062620181,5.01694383,113650.0,113640.0,0.29047436]
[1761062621017,5.01694383,113650.0,113640.0,0.85744746]
[1761062621193,5.19292271,113650.0,113640.0,0.29047436]
[1761062621400,5.01694383,113650.0,113640.0,0.29047436]
[1761062625342,5.01696729,113650.0,113640.0,0.29047436]
[1761062629106,5.01697352,113650.0,113640.0,0.29047436]
[1761062630275,5.01697352,113650.0,113640.0,0.43637436]
[1761062630639,5.01697352,113650.0,113640.0,0.52619337]
[1761062631892,5.01697352,113650.0,113640.0,1.09316647]
[1761062632117,5.01697639,113650.0,113640.0,1.09316647]
[1761062632319,5.01697639,113650.0,113640.0,0.52619337]
[1761062632488,5.01697642,113650.0,113640.0,0.47619337]
[1761062635273,5.01697642,113650.0,113640.0,0.89726647]
[1761062635472,5.01697642,113650.0,113640.0,0.89826647]
[1761062635674,5.01697642,113650.0,113640.0,0.84826647]
[1761062635835,5.01697642,113650.0,113640.0,0.28129337]
[1761062636036,5.01697642,113650.0,113640.0,0.84826647]
[1761062636237,5.0004847,113650.0,113640.0,0.28129337]
[1761062636455,5.0004847,113650.0,113640.0,0.84826647]
[1761062637644,5.01696728,113650.0,113640.0,0.84826647]
[1761062637850,5.01696771,113650.0,113640.0,0.84826647]
[1761062638182,5.01696757,113650.0,113640.0,0.84826647]
[1761062638514,5.0004847,113650.0,113640.0,0.28129337]
[1761062638699,5.0169667,113650.0,113640.0,0.26681337]
[1761062638847,5.0169667,113650.0,113640.0,0.29007436]
[1761062640485,5.0169667,113650.0,113640.0,0.28907436]
[1761062640690,5.0169667,113650.0,113640.0,0.94586647]
[1761062641110,5.0004847,113650.0,113640.0,0.94586647]
[1761062641824,5.0004847,113650.0,113640.0,0.94686647]
[1761062642307,5.01696743,113650.0,113640.0,0.94686647]
[1761062642860,5.01696743,113650.0,113640.0,0.37989337]
[1761062643079,5.01696743,113650.0,113640.0,0.94786647]
[1761062643295,5.01696743,113650.0,113640.0,0.38089337]
[1761062643488,5.01696743,113650.0,113640.0,0.94686647]
[1761062643686,5.01696743,113650.0,113640.0,0.83378647]
[1761062643887,5.01696778,113650.0,113640.0,0.17799436]
[1761062644341,5.01696778,113650.0,113640.0,0.29107436]
[1761062644725,5.01696778,113650.0,113640.0,0.85804746]
[1761062645102,5.01696778,113650.0,113640.0,0.43697436]
[1761062646450,5.01696778,113650.0,113640.0,0.43597436]
[1761062647040,5.01696778,113650.0,113640.0,0.43697436]
[1761062648115,5.19294666,113650.0,113640.0,0.002]
[1761062648452,5.19294666,113650.0,113640.0,0.11508]
[1761062648649,5.19294666,113650.0,113640.0,0.29107436]
[1761062648858,5.01696778,113650.0,113640.0,0.29107436]
[1761062649141,5.01696778,113650.0,113640.0,0.002]
[1761062649142,5.75991976,113650.0,113640.0,0.002]
[1761062649347,6.33900105,113650.0,113640.0,0.002]
[1761062649470,6.42882006,113650.0,113640.0,0.002]
[1761062649678,6.42882006,113650.0,113640.0,0.001]
[1761062649679,6.99579316,113650.0,113640.0,0.001]
[1761062649884,5.86184696,113650.0,113640.0,0.001]
[1761062650080,6.61579316,113650.0,113640.0,0.001]
[1761062650281,6.04882006,113650.0,113640.0,0.001]
[1761062653609,6.62579315,113650.0,113640.0,0.001]
[1761062654058,5.49184695,113650.0,113640.0,0.001]
[1761062654224,6.05882005,113650.0,113640.0,0.001]
[1761062654741,6.62579315,113650.0,113640.0,0.001]
[1761062654923,5.28894794,113650.0,113640.0,0.001]
[1761062655127,4.87616907,113650.0,113640.0,0.001]
[1761062655374,5.05214795,113650.0,113640.0,0.001]
[1761062655585,5.39214795,113650.0,113640.0,0.001]
[1761062655782,5.95912105,113650.0,113640.0,0.001]
[1761062655987,6.04894006,113650.0,113640.0,0.001]
[1761062656127,5.48296696,113650.0,113640.0,0.001]
[1761062656335,4.97796778,113650.0,113640.0,0.001]
[1761062656552,5.15294666,113650.0,113640.0,0.17699436]
[1761062656743,5.15294666,113650.0,113640.0,0.001]
[1761062657147,5.18912894,113650.0,113640.0,0.17699436]
[1761062657342,5.27894795,113650.0,113640.0,0.001]
[1761062657551,6.07046726,113650.0,113640.0,0.001]
[1761062658399,6.08046725,113650.0,113640.0,0.001]
[1761062658672,6.07046726,113650.0,113640.0,0.001]
[1761062659108,0.21220188,113630.0,113610.0,0.17603888]
[1761062659311,0.48248437,113630.0,113620.0,0.17602534]
[1761062659539,0.65849422,113630.0,113620.0,0.17602534]
[1761062659746,0.35648308,113630.0,113620.0,0.17602534]
[1761062659935,0.532458,113630.0,113620.0,0.17602534]
[1761062660306,0.53245786,113630.0,113620.0,0.17602534]
[1761062660962,0.35644801,113630.0,113620.0,0.28926534]
[1761062661770,0.53245786,113630.0,113620.0,0.28926534]
[1761062662328,0.35644801,113630.0,113620.0,0.28926534]
[1761062662528,0.35644801,113630.0,113620.0,0.29026534]
[1761062664767,0.01644801,113630.0,113620.0,0.29026534]
[1761062665055,0.0255271,113630.0,113620.0,0.29026534]
[1761062665631,0.01644801,113630.0,113620.0,0.29026534]
[1761062666068,0.00907909,113640.0,113630.0,0.17600985]
[1761062666233,0.02552346,113640.0,113630.0,0.17600985]
[1761062666409,0.02552346,113640.0,113630.0,0.13310985]
[1761062666630,0.20151782,113640.0,113630.0,0.13310985]
[1761062666835,0.17599436,113640.0,113630.0,0.13310985]
[1761062667040,0.02552608,113640.0,113630.0,0.13310985]
[1761062667402,0.20152044,113640.0,113630.0,0.13410985]
[1761062667625,0.02552608,113640.0,113630.0,0.13410985]
[1761062668249,0.20152044,113640.0,113630.0,0.13410985]
[1761062668404,0.19244135,113640.0,113630.0,0.13410985]
[1761062670339,0.01644699,113640.0,113630.0,0.13410985]
[1761062670540,0.20152044,113640.0,113630.0,0.13410985]
[1761062670769,0.19244135,113640.0,113630.0,0.13410985]
[1761062671959,0.01644699,113640.0,113630.0,0.13410985]
[1761062672167,0.02552608,113640.0,113630.0,0.13410985]
[1761062672580,0.20152044,113640.0,113630.0,0.001]
[1761062672784,0.53244135,113640.0,113630.0,0.001]